Workbook

Sheet Main
H1: LC Faculty Workload CalCulator - 2023 Academic year
F2: Please fill in Faculty Member name here 4
K3: To calculate your workload , enter your information ONLY where you see a cell with these colours 4 | T3: 22FL/23WN
S4: Course | T4: Avg Cap | U4: Course | V4: SECT CR | X4: Weekly Contact Hours | AA4: Additional Work
B5: What type of contract is your main/primary contract with LC? | H5: Full-Time Continuing | L5: Target Hours | O5: Total Hours | S5: AAT2250 | T5: 16 | U5: ACC1125 | V5: 1.5 | X5: 1 | AA5: No
B6: For your primary contract, what type of instruction do you do? | H6: Academic Subject Instruction (15 weeks) | S6: AAT2250L | T6: 16 | U6: ACC1146 | V6: 3 | X6: 2 | AA6: Yes
B7: If you are continuing or term-certain, what % of a full load is your primary contract? | K7: 1 | S7: AAT2250T | T7: 16 | U7: ACC1170 | V7: 3 | X7: 3
B8: Do you do additional (extra contract) work above your assigned workload? | K8: Yes | S8: AAT2251 | T8: 16 | U8: ACC1175 | V8: 3 | X8: 4 | AA8: Type of Contract
K9: 1) Base Yearly Hours - all faculty | L9: =VLOOKUP(H6,$X$24:$Y$27,2,FALSE) -> 540 | O9: =(1330)*K7 -> 1330 | S9: AAT2260 | T9: 16 | U9: ACC2250 | V9: 3 | X9: 5 | AA9: Full-Time Continuing
K10: 2) Annual Hrs Cross Check (Target Hours x 2) | O10: =L9*2*K7 -> 1080 | S10: AAT2260L | T10: 16 | U10: ACC2251 | V10: 3 | X10: 6 | AA10: Part-Time Continuing
K11: Hours remaining for Institutional Service and/or PD | O11: =O9-O10 -> 250 | S11: AAT2260T | T11: 16 | U11: ACC2271 | V11: 3 | X11: 7 | AA11: Term-Certain
S12: AAT2261 | T12: 16 | U12: ACC2273 | V12: 3 | X12: 8 | AA12: Casual or DL contract(s)
B13: Summary Calculations | S13: AAT2261L | T13: 16 | U13: ACC2278 | V13: 3 | X13: 9
O14: Primary | P14: Extra | Q14: Totals | S14: AAT2261T | T14: 16 | U14: AGB1140M1 | V14: 0.75 | X14: 10 | AA14: How Paid
N15: hours | O15: =$O123 -> 250 | P15: =$P127 -> 0 | Q15: =$Q131 -> 250 | S15: AAT2270 | T15: 16 | U15: AGB1140M2 | V15: 0.75 | X15: 11 | AA15: Primary
N16: % | O16: =$O124 -> 0.1879699248 | P16: =$P128 -> 0 | Q16: =$Q132 -> 0.1879699248 | S16: AAT2270L | T16: 16 | U16: AGB1150M1 | V16: 0.75 | X16: 12 | AA16: Casual
S17: AAT2270T | T17: 16 | U17: AGB1150M2 | V17: 0.75 | AA17: Distance
B18: Professional Development | G18: up to 50/70 hrs suggested for F/T | N18: Click here to learn more. | S18: AAT2280 | T18: 16 | U18: AGB1150M3 | V18: 0.75 | X18: Percentages | AA18: 'Above'
N19: Suggested Amount: | O19: =IF(SUM(O20:O21)=0,0.280899*O11,0) -> 70.22475 | S19: AAT2280L | T19: 16 | U19: AGB1150M4 | V19: 0.75 | X19: 0
O20: 0 | S20: AAT2280T | T20: 16 | U20: AGB1151M1 | V20: 0.75 | X20: 1.2
O21: 0 | S21: AAT2290W | T21: 16 | U21: AGB1151M2 | V21: 0.75
O22: =SUM(O19:O21) -> 70.22475 | S22: ACC1125 | T22: 24 | U22: AGB1151M3 | V22: 0.75
S23: ACC1146 | T23: 42 | U23: AGB1160M1 | V23: 0.75 | X23: Instruction Type | Y23: Workload
B24: Institutional/Discipline Service | G24: up to 128/180 hrs suggested for F/T | N24: Click here to learn more | S24: ACC1170 | T24: 35.82352941 | U24: AGB1160M2 | V24: 0.75 | X24: Academic Subject Instruction (15 weeks) | Y24: 540 | Z24: 15
N25: Suggested Amount: | O25: =IF(SUM(O26:O29)=0,0.719101*O11,0) -> 179.77525 | S25: ACC1175 | T25: 36.85714286 | U25: AGB1160M3 | V25: 0.75 | X25: Academic Subject Instruction (16 weeks) | Y25: 576 | Z25: 16
O26: 0 | S26: ACC2250 | T26: 40 | U26: AGB1160M4 | V26: 0.75 | X26: Trades Instruction | Y26: 649 | Z26: 16
O27: 0 | S27: ACC2251 | T27: 40 | U27: AGB1161M1 | V27: 0.75 | X27: Nursing Instruction | Y27: 700 | Z27: 16
O28: 0 | S28: ACC2271 | T28: 40 | U28: AGB1161M2 | V28: 0.75
O29: 0 | S29: ACC2273 | T29: 40 | U29: AGB1162M1 | V29: 0.75
O30: =SUM(O25:O29) -> 179.77525 | S30: ACC2278 | T30: 30 | U30: AGB1162M2 | V30: 0.75
S31: AET115 | T31: 8 | U31: AGB1163M1 | V31: 0.75
B32: Applied Research | G32: By Mutual Agreement | N32: Click here to learn more | S32: AET135 | T32: 8 | U32: AGB1163M2 | V32: 0.75
O33: 0 | S33: AGS1150 | T33: 42.66666667 | U33: AGB1171M1 | V33: 0.75
O34: 0 | S34: AGS1150L | T34: 18.4 | U34: AGB1171M2 | V34: 0.75
O35: 0 | S35: AGS2250 | T35: 18 | U35: AGB1171M3 | V35: 0.75
B36: Hrs captured as agreed between faculty, dean & Applied Research | O36: =SUM(O33:O35) -> 0 | S36: AGS2251 | T36: 18 | U36: AGB1171M4 | V36: 0.75
S37: AGS2255 | T37: 48 | U37: AGB1172M1 | V37: 0.75
B38: INSTRUCTIONAL RESPONSIBILITIES - Primary Assignment | S38: AGS2255L | T38: 18 | U38: AGB1172M2 | V38: 0.75
F39: FRONT END | J39: BACK END | S39: AGS2280 | T39: 30 | U39: AGB1172M3 | V39: 0.75
F40: Course Prep & Delivery | J40: Student Support & Assessment (S&A) | S40: AGS2280L | T40: 15 | U40: AGR1164 | V40: 3
F41: SCH Factor | G41: 2 | I41: Weeks/Term: | J41: =VLOOKUP($H$6,$X$24:$Z$27,3,FALSE) -> 15 | S41: AGS3381 | T41: 30 | U41: AGR1164L | V41: 0
B42: 1st Term/Period | F42: Term Lgth | G42: =VLOOKUP($H$6,$X$24:$Z$27,3,FALSE) -> 15 | I42: Support Hrs Fn: | J42: 0.15 | L42: Assessment Hrs Fn: | M42: 0.03 | P42: Section Size Standard | S42: AGS3381L | T42: 30 | U42: AGR1168 | V42: 3
B43: COURSE NO | C43: SECT NO | D43: TERM (eg. 23FL or 24WN) | E43: DIFF PREP FLAG | F43: Weekly Student Contact Hrs (SCH) | G43: Total Prep & Delivery Hrs | H43: Course Fill Standard | I43: Avg Course Fill | J43: Support Hours Factor | K43: Course Assmt Flag | L43: Assess-ment Factor | M43: Total S&A Hrs | O43: Total Inst'l Hrs Primary | P43: Standardized Class Size Averages | S43: AGS3382 | T43: 36 | U43: AGR1168L | V43: 0
E44: =IF(OR(B44=B42,ISBLANK(B44)),0,1) -> 0 | G44: =IF(LEN(B44)>0,+F44*$G$41*$G$42,0) -> 0 | H44: =IF($B44="","0",IF(RIGHT($B44,1)="L",$Q$50,IF(RIGHT($B44,1)="T",$Q$50,$Q$45))) -> 0 | I44: =IF(LEN(B44)>0,VLOOKUP(B44,$S$5:$T$1081,2,FALSE),"") ->  | J44: =IF(H44=$Q$45,IF(I44>$Q$47,(I44-$Q$47)*$J$42*$J$41,IF(I44<$Q$48,(I44-$Q$48)*$J$42*$J$41,)),IF(H44=$Q$50,IF(I44>$Q$52,(I44-$Q$52)*$J$41*$J$42,IF(I44<$Q$53,(I44-$Q$53)*$J$41*$J$42,0)))) -> FALSE | K44: 0 | L44: =IF(K44=1,I44*$J$41*$M$42,0) -> 0 | M44: =J44+L44 -> 0 | O44: =$G44+$M44 -> 0 | P44: LEC: | S44: AGS3382L | T44: 18 | U44: AGR2250 | V44: 3
E45: =IF(OR(B45=B44,ISBLANK(B45)),0,1) -> 0 | G45: 0 | H45: =IF($B45="","0",IF(RIGHT($B45,1)="L",$Q$50,IF(RIGHT($B45,1)="T",$Q$50,$Q$45))) -> 0 | J45: FALSE | K45: 0 | L45: 0 | M45: =J45+L45 -> 0 | O45: =$G45+$M45 -> 0 | P45: Mean | Q45: 22.5 | S45: AGS3385 | T45: 36 | U45: AGR2250L | V45: 0
E46: =IF(OR(B46=B45,ISBLANK(B46)),0,1) -> 0 | G46: 0 | H46: 0 | J46: FALSE | K46: 0 | L46: 0 | M46: 0 | O46: 0 | P46: St Dev | Q46: 11.5 | S46: AGS3385L | T46: 18 | U46: AGR2261 | V46: 3
E47: =IF(OR(B47=B46,ISBLANK(B47)),0,1) -> 0 | G47: 0 | H47: 0 | J47: FALSE | K47: 0 | L47: 0 | M47: 0 | O47: 0 | P47: Upper Lmt | Q47: 34 | S47: AGS4450 | T47: 15 | U47: AGR2266 | V47: 3
E48: =IF(OR(B48=B47,ISBLANK(B48)),0,1) -> 0 | G48: 0 | H48: 0 | J48: FALSE | K48: 0 | L48: 0 | M48: 0 | O48: 0 | P48: Lower Lmt | Q48: 11 | S48: AGS4481 | T48: 15 | U48: AGR2266L | V48: 0
E49: =IF(OR(B49=B48,ISBLANK(B49)),0,1) -> 0 | G49: 0 | H49: 0 | J49: FALSE | K49: 0 | L49: 0 | M49: 0 | O49: 0 | P49: LAB/TUT: | S49: AGS4481L | T49: 15 | U49: AGR2280 | V49: 3
E50: 0 | G50: 0 | H50: 0 | I50: =IF(LEN(B50)>0,VLOOKUP(B50,$S$5:$T$1081,2,FALSE),"") ->  | J50: FALSE | K50: 0 | L50: 0 | M50: =J50+L50 -> 0 | O50: 0 | P50: Mean | Q50: 14.2 | S50: AGS4483 | T50: 15 | U50: AGR2280L | V50: 0
E51: 0 | G51: 0 | H51: 0 | I51: =IF(LEN(B51)>0,VLOOKUP(B51,$S$5:$T$1081,2,FALSE),"") ->  | J51: FALSE | K51: 0 | L51: 0 | M51: 0 | O51: 0 | P51: St. Dev | Q51: 4.9 | S51: AGS4483L | T51: 15 | U51: AGR2286 | V51: 3
E52: 0 | G52: 0 | H52: 0 | I52: =IF(LEN(B52)>0,VLOOKUP(B52,$S$5:$T$1081,2,FALSE),"") ->  | J52: FALSE | K52: 0 | L52: 0 | M52: 0 | O52: 0 | P52: Upper Lmt | Q52: 19 | S52: AGS4485 | T52: 15 | U52: AGR2287 | V52: 3
E53: 0 | G53: 0 | H53: 0 | I53: =IF(LEN(B53)>0,VLOOKUP(B53,$S$5:$T$1081,2,FALSE),"") ->  | J53: FALSE | K53: 0 | L53: 0 | M53: 0 | O53: 0 | P53: Lower Lmt | Q53: 9 | S53: AGS4485L | T53: 15 | U53: AGR2287L | V53: 0
E54: 0 | G54: 0 | H54: 0 | I54: =IF(LEN(B54)>0,VLOOKUP(B54,$S$5:$T$1081,2,FALSE),"") ->  | J54: FALSE | K54: 0 | L54: 0 | M54: 0 | O54: 0 | S54: AHM1124 | T54: 32 | U54: AGR2289 | V54: 3
E55: 0 | G55: 0 | H55: 0 | I55: =IF(LEN(B55)>0,VLOOKUP(B55,$S$5:$T$1081,2,FALSE),"") ->  | J55: FALSE | K55: 0 | L55: 0 | M55: 0 | O55: 0 | S55: AHM1124L | T55: 32 | U55: AGR2289L | V55: 0
E56: 0 | G56: 0 | H56: 0 | J56: FALSE | K56: 0 | L56: 0 | M56: 0 | O56: 0 | S56: AHM1126 | T56: 32 | U56: AGR2291 | V56: 3
E57: 0 | G57: 0 | H57: 0 | J57: FALSE | K57: 0 | L57: 0 | M57: 0 | O57: 0 | S57: AHM1126L | T57: 32 | U57: AGR2291L | V57: 0
E58: =IF(OR(B58=B57,ISBLANK(B58)),0,1) -> 0 | G58: 0 | H58: 0 | J58: FALSE | K58: 0 | L58: 0 | M58: 0 | O58: 0 | S58: AHM1127 | T58: 32 | U58: AGR2294 | V58: 3
E59: 0 | G59: 0 | H59: 0 | J59: FALSE | K59: 0 | L59: 0 | M59: 0 | O59: 0 | S59: AHM1127L | T59: 32 | U59: AGR2294L | V59: 0
E60: 0 | G60: 0 | H60: 0 | J60: FALSE | K60: 0 | L60: 0 | M60: 0 | O60: 0 | S60: AHM1129 | T60: 32 | U60: AOP1142 | V60: 3
E61: 0 | G61: 0 | H61: 0 | J61: FALSE | K61: 0 | L61: 0 | M61: 0 | O61: 0 | S61: AHM1129L | T61: 32 | U61: AOP1145 | V61: 3
E62: 0 | G62: 0 | H62: 0 | J62: FALSE | K62: 0 | L62: 0 | M62: 0 | O62: 0 | S62: AHM1130 | T62: 32 | U62: AOP1148 | V62: 1.5
E63: 0 | G63: 0 | H63: 0 | J63: FALSE | K63: 0 | L63: 0 | M63: 0 | O63: 0 | S63: AHM1130L | T63: 32 | U63: ART1150 | V63: 3
B64: TERM TOTALS | E64: =SUM(E44:E63) -> 0 | F64: =SUM(F44:F63) -> 0 | G64: =SUM(G44:G63) -> 0 | J64: =SUM(J44:J63) -> 0 | L64: =SUM(L44:L63) -> 0 | M64: =SUM(M44:M63) -> 0 | O64: =SUM(O44:O63) -> 0 | S64: AHM1131 | T64: 32 | U64: ART1170 | V64: 3
S65: AHM1131L | T65: 32 | U65: BIO1145 | V65: 3
B66: 2nd Term/Period | S66: AHM1132 | T66: 32 | U66: BIO1145L | V66: 0
B67: COURSE NO | C67: SECT NO | D67: TERM (eg. 23FL or 24WN) | E67: DIFF PREP FLAG | F67: Weekly Student Contact Hrs (SCH) | G67: Total Prep & Delivery Hrs | H67: Crse Fill Standard | I67: Avg Crse Fill | J67: Support Hours Factor | K67: Crse Assmt Flag | L67: Assess-ment Factor | M67: Total S&A Hrs | O67: Total Inst'l Hrs Primary | S67: AHM1132L | T67: 32 | U67: BIO1146 | V67: 3
E68: =IF(OR(B68=B66,ISBLANK(B68)),0,1) -> 0 | G68: =IF(LEN(B68)>0,+F68*$G$41*$G$42,0) -> 0 | H68: =IF($B68="","0",IF(RIGHT($B68,1)="L",$Q$50,IF(RIGHT($B68,1)="T",$Q$50,$Q$45))) -> 0 | I68: =IF(LEN(B68)>0,VLOOKUP(B68,$S$5:$T$1081,2,FALSE),"") ->  | J68: =IF(H68=$Q$45,IF(I68>$Q$47,(I68-$Q$47)*$J$42*$J$41,IF(I68<$Q$48,(I68-$Q$48)*$J$42*$J$41,)),IF(H68=$Q$50,IF(I68>$Q$52,(I68-$Q$52)*$J$41*$J$42,IF(I68<$Q$53,(I68-$Q$53)*$J$41*$J$42,0)))) -> FALSE | K68: 0 | L68: =IF(K68=1,I68*$J$41*$M$42,0) -> 0 | M68: =J68+L68 -> 0 | O68: =$G68+$M68 -> 0 | S68: AHM1135 | T68: 32 | U68: BIO1146L | V68: 0
E69: =IF(OR(B69=B68,ISBLANK(B69)),0,1) -> 0 | G69: 0 | H69: 0 | J69: FALSE | K69: 0 | L69: 0 | M69: 0 | O69: =$G69+$M69 -> 0 | S69: AHM1135L | T69: 32 | U69: BIO1150 | V69: 3
E70: 0 | G70: 0 | H70: 0 | J70: FALSE | K70: 0 | L70: 0 | M70: 0 | O70: 0 | S70: ANM2250 | T70: 15 | U70: BIO1150L | V70: 0
E71: =IF(OR(B71=B70,ISBLANK(B71)),0,1) -> 0 | G71: 0 | H71: 0 | J71: FALSE | K71: 0 | L71: 0 | M71: 0 | O71: 0 | S71: ANM2250L | T71: 15 | U71: BIO1151 | V71: 3
E72: =IF(OR(B72=B71,ISBLANK(B72)),0,1) -> 0 | G72: 0 | H72: 0 | J72: FALSE | K72: 0 | L72: 0 | M72: 0 | O72: 0 | S72: ANM2251 | T72: 15 | U72: BIO1152 | V72: 3
E73: =IF(OR(B73=B72,ISBLANK(B73)),0,1) -> 0 | G73: 0 | H73: 0 | J73: FALSE | K73: 0 | L73: 0 | M73: 0 | O73: 0 | S73: ANM2251L | T73: 15 | U73: BIO1152L | V73: 0
E74: 0 | G74: 0 | H74: 0 | I74: =IF(LEN(B74)>0,VLOOKUP(B74,$S$5:$T$1081,2,FALSE),"") ->  | J74: FALSE | K74: 0 | L74: 0 | M74: 0 | O74: 0 | S74: ANM2252 | T74: 15 | U74: BIO1155 | V74: 3
E75: 0 | G75: 0 | H75: 0 | J75: FALSE | K75: 0 | L75: 0 | M75: 0 | O75: 0 | S75: ANM2252L | T75: 15 | U75: BIO1156 | V75: 3
E76: 0 | G76: 0 | H76: 0 | J76: FALSE | K76: 0 | L76: 0 | M76: 0 | O76: 0 | S76: ANM2253 | T76: 15 | U76: BIO1160 | V76: 3
E77: 0 | G77: 0 | H77: 0 | J77: FALSE | K77: 0 | L77: 0 | M77: 0 | O77: 0 | S77: ANM2253L | T77: 15 | U77: BIO1160L | V77: 0
E78: 0 | G78: 0 | H78: 0 | J78: FALSE | K78: 0 | L78: 0 | M78: =J78+L78 -> 0 | O78: 0 | S78: ANM2254 | T78: 15 | U78: BIO1161 | V78: 3
E79: 0 | G79: 0 | H79: 0 | J79: FALSE | K79: 0 | L79: 0 | M79: 0 | O79: 0 | S79: ANM2254L | T79: 15 | U79: BIO1161L | V79: 0
E80: 0 | G80: 0 | H80: 0 | J80: FALSE | K80: 0 | L80: 0 | M80: 0 | O80: 0 | S80: ANT1195 | T80: 40 | U80: BIO1162 | V80: 3
E81: 0 | G81: 0 | H81: 0 | J81: FALSE | K81: 0 | L81: 0 | M81: 0 | O81: 0 | S81: AOP1142 | T81: 42 | U81: BIO1162L | V81: 0
E82: 0 | G82: 0 | H82: 0 | J82: FALSE | K82: 0 | L82: 0 | M82: 0 | O82: 0 | S82: AOP1143 | T82: 42 | U82: BIO1163 | V82: 3
E83: =IF(OR(B83=B82,ISBLANK(B83)),0,1) -> 0 | G83: 0 | H83: 0 | J83: FALSE | K83: 0 | L83: 0 | M83: 0 | O83: 0 | S83: AOP1145 | T83: 42 | U83: BIO1163L | V83: 0
E84: =IF(OR(B84=B83,ISBLANK(B84)),0,1) -> 0 | G84: 0 | H84: 0 | J84: FALSE | K84: 0 | L84: 0 | M84: 0 | O84: 0 | S84: ARK1165 | T84: 40 | U84: BIO1164 | V84: 3
E85: =IF(OR(B85=B84,ISBLANK(B85)),0,1) -> 0 | G85: 0 | H85: 0 | J85: FALSE | K85: 0 | L85: 0 | M85: 0 | O85: 0 | S85: ART1150 | T85: 25 | U85: BIO1164L | V85: 0
E86: =IF(OR(B86=B85,ISBLANK(B86)),0,1) -> 0 | G86: 0 | H86: 0 | J86: FALSE | K86: 0 | L86: 0 | M86: 0 | O86: 0 | S86: ART1160 | T86: 25 | U86: BIO1167 | V86: 3
E87: =IF(OR(B87=B86,ISBLANK(B87)),0,1) -> 0 | G87: 0 | H87: 0 | J87: FALSE | K87: 0 | L87: 0 | M87: 0 | O87: 0 | S87: ART1170 | T87: 25 | U87: BIO1167L | V87: 0
B88: TERM TOTALS | E88: =SUM(E68:E87) -> 0 | F88: =SUM(F68:F87) -> 0 | G88: =SUM(G68:G87) -> 0 | J88: =SUM(J68:J87) -> 0 | L88: =SUM(L68:L87) -> 0 | M88: =SUM(M68:M87) -> 0 | O88: =SUM(O68:O87) -> 0 | S88: AST1116 | T88: 24 | U88: BIO1168 | V88: 3
S89: AST1116L | T89: 24 | U89: BIO1168L | V89: 0
E90: Total DIFF PREP FLAGs | F90: Weekly Student Contact Hrs (SCH) | G90: Total Prep & Delivery Hrs | J90: Support Hours Factor | L90: Assess-ment Factor | M90: Total S&A Hrs | O90: Total Inst'l Hrs Primary | S90: AST1119 | T90: 24 | U90: BIO1170 | V90: 3
B91: Primary Assignment TOTALS | E91: =E64+E88 -> 0 | F91: =F64+F88 -> 0 | G91: =G64+G88 -> 0 | J91: =J64+J88 -> 0 | L91: =L64+L88 -> 0 | M91: =M64+M88 -> 0 | O91: =O64+O88 -> 0 | S91: AST1119L | T91: 24 | U91: BIO1170L | V91: 0
S92: AST1122 | T92: 24 | U92: BIO1172 | V92: 3
B93: INSTRUCTIONAL RESPONSIBILITIES - Extra Assignments | S93: AST1131 | T93: 24 | U93: BIO1172L | V93: 0
S94: AST1131L | T94: 24 | U94: BIO1175 | V94: 3
B95: COURSE NO | C95: SECT NO | D95: TERM (eg. 23FL or 24WN) | E95: DIFF PREP FLAG | F95: Weekly Student Contact Hrs (SCH) | G95: Total Prep & Delivery Hrs | H95: Crse Fill Standard | I95: Avg Crse Fill | J95: Support Hours Factor | K95: Crse Assmt Flag | L95: Assess-ment Factor | M95: Total S&A Hrs | P95: Total Inst'l Hrs Extra | S95: AST1133 | T95: 24 | U95: BIO1175L | V95: 0
E96: =IF(OR(B96=B94,ISBLANK(B96)),0,1) -> 0 | G96: =IF(LEN(B96)>0,+F96*$G$41*$G$42,0) -> 0 | H96: =IF(LEN(B96)=7,$Q$45,IF(LEN(B96)=8,$Q$50,0)) -> 0 | I96: =IF(LEN(B96)>0,VLOOKUP(B96,$S$5:$T$1081,2,FALSE),"") ->  | J96: =IF(H96=$Q$45,IF(I96>$Q$47,(I96-$Q$47)*$J$42*$J$41,IF(I96<$Q$48,(I96-$Q$48)*$J$42*$J$41,)),IF(H96=$Q$50,IF(I96>$Q$52,(I96-$Q$52)*$J$41*$J$42,IF(I96<$Q$53,(I96-$Q$53)*$J$41*$J$42,0)))) -> FALSE | K96: 0 | L96: =IF(K96=1,I96*$J$41*$M$42,0) -> 0 | M96: =J96+L96 -> 0 | P96: =$G96+$M96 -> 0 | S96: AST1133L | T96: 24 | U96: BIO2262 | V96: 3
E97: =IF(OR(B97=B96,ISBLANK(B97)),0,1) -> 0 | G97: 0 | H97: 0 | J97: FALSE | K97: 0 | L97: =IF(K97=1,I97*$J$41*$M$42,0) -> 0 | M97: 0 | P97: =$G97+$M97 -> 0 | S97: AST1134 | T97: 24 | U97: BIO2262L | V97: 0
E98: 0 | G98: 0 | H98: 0 | J98: FALSE | K98: 0 | L98: =IF(K98=1,I98*$J$41*$M$42,0) -> 0 | M98: 0 | P98: 0 | S98: AST1134L | T98: 24 | U98: BIO2269 | V98: 3
E99: 0 | G99: 0 | H99: 0 | J99: FALSE | K99: 0 | L99: =IF(K99=1,I99*$J$41*$M$42,0) -> 0 | M99: 0 | P99: 0 | S99: AST1135 | T99: 24 | U99: BIO2269L | V99: 0
E100: 0 | G100: 0 | H100: 0 | I100: =IF(LEN(B100)>0,VLOOKUP(B100,$S$5:$T$1081,2,FALSE),"") ->  | J100: FALSE | K100: 0 | L100: 0 | M100: 0 | P100: 0 | S100: AST1135L | T100: 24 | U100: BIO3350 | V100: 3
E101: 0 | G101: 0 | H101: 0 | I101: =IF(LEN(B101)>0,VLOOKUP(B101,$S$5:$T$1081,2,FALSE),"") ->  | J101: FALSE | K101: 0 | L101: 0 | M101: =J101+L101 -> 0 | P101: =$G101+$M101 -> 0 | S101: AST1138 | T101: 24 | U101: BIO3350L | V101: 0
E102: 0 | G102: 0 | H102: 0 | I102: =IF(LEN(B102)>0,VLOOKUP(B102,$S$5:$T$1081,2,FALSE),"") ->  | J102: FALSE | K102: 0 | L102: 0 | M102: =J102+L102 -> 0 | P102: =$G102+$M102 -> 0 | S102: AST1138L | T102: 24 | U102: BUS1124 | V102: 3
B103: Extra Assignment TOTALS | E103: =SUM(E96:E102) -> 0 | F103: =SUM(F96:F102) -> 0 | G103: =SUM(G96:G102) -> 0 | J103: =SUM(J96:J102) -> 0 | L103: =SUM(L96:L102) -> 0 | M103: =SUM(M96:M102) -> 0 | P103: =SUM(P96:P102) -> 0 | S103: AST1139 | T103: 24 | U103: BUS1166 | V103: 3
S104: AST1139L | T104: 24 | U104: BUS1168 | V104: 3
B105: Extraordinary Workload Considerations / Requirements: | S105: AST1141 | T105: 24 | U105: BUS1170 | V105: 3
B106: > Release Time for Faculty Business as per Collective Agreement | S106: AST1141L | T106: 24 | U106: BUS1176 | V106: 3
B107: > Release for new or probationary faculty to do ICP | S107: AST1142 | T107: 24 | U107: BUS1177 | V107: 3
B108: > Curriculum Dev for new programming or comprehensive redesign; Transitioning F2F to Online | S108: AST1142L | T108: 24 | U108: BUS1180 | V108: 3
B109: Reason/Explanation: | S109: AST1143 | T109: 24 | U109: BUS1185 | V109: 1.5
S110: AST1143L | T110: 24 | U110: BUS2267 | V110: 3
S111: AST1145 | T111: 24 | U111: BUS2268 | V111: 3
S112: AST1145L | T112: 24 | U112: BUS2269 | V112: 3
S113: BAK110 | T113: 10 | U113: BUS2275 | V113: 3
S114: BAK120 | T114: 13 | U114: BUS2278 | V114: 3
S115: BAK130 | T115: 13 | U115: BUS2285 | V115: 3
B116: Total Extraordinary Considerations | O116: =SUM(O106:O115) -> 0 | S116: BIO0020L | T116: 16 | U116: BUS2292 | V116: 3
S117: BIO0030L | T117: 16 | U117: BUS2298 | V117: 3
B118: Workload Summary | S118: BIO1146 | T118: 48 | U118: CAD1155 | V118: 3
S119: BIO1146L | T119: 24 | U119: CAD1180 | V119: 3
B120: Primary Assignment Workload | O120: Primary | S120: BIO1150 | T120: 24 | U120: CAD2258 | V120: 3
B121: Model Target Range (± 7%) | N121: 0.93 | O121: Base | P121: 1.07 | S121: BIO1150L | T121: 12 | U121: CAP1158 | V121: 3
B122: Model Target Hours Range | N122: =O122*N121 -> 1236.9 | O122: =O9 -> 1330 | P122: =O122*P121 -> 1423.1 | S122: BIO1151 | T122: 54.4 | U122: CEN2269 | V122: 3
B123: Total Primary workload - Calculated (hrs) | L123: =IF($O123<$N$122,"Underload "&TRUNC($O122-$O$123)&" Hours",IF($O123>$P$122,"Overload "&TRUNC($O123-$O$122)&" Hours","In Range")) -> Underload 1080 Hours | O123: =O22+O30+O36+O91+O116 -> 250 | S123: BIO1152 | T123: 28.5 | U123: CEN2269L | V123: 0
B124: Total Primary Workload as % of Model Base | L124: =ROUND(($O123/$O$122*100),1)&"% of Base" -> 18.8% of Base | O124: =(O123/O122) -> 0.1879699248 | S124: BIO1152L | T124: 14 | U124: CEN3352 | V124: 3
S125: BIO1155 | T125: 33.77777778 | U125: CEN3352L | V125: 0
B126: Extra Assignment Workload | P126: Extra | S126: BIO1156 | T126: 34.23076923 | U126: CEN3354 | V126: 3
B127: Total Added work (hrs) | L127: =IF($P$128<0.1,"Acceptable Extra "&TRUNC($P$127)&" Hours",IF(AND($P$128>0.1,$P$128<0.15),"Check Extra "&TRUNC($P$127)&" Hours","Excessive Extra "&TRUNC($P$127)&" Hours")) -> Acceptable Extra 0 Hours | P127: =P103 -> 0 | S127: BIO1157 | T127: 16 | U127: CEN3357 | V127: 3
B128: Total Added work as % of Model Base | L128: =ROUND(($P127/$O$122*100),1)&"% of Base" -> 0% of Base | P128: =P127/O122 -> 0 | S128: BIO1157L | T128: 16 | U128: CEN3369 | V128: 3
S129: BIO1160 | T129: 40.54545455 | U129: CEN3369L | V129: 0
B130: Total (Primary + Extra) Workload | Q130: Total | S130: BIO1160L | T130: 18.52173913 | U130: CEN3374 | V130: 3
B131: Total (Primary + Added) work | L131: =IF($Q131<$N$122,"Underload "&TRUNC($Q130-$O$123)&" Hours",IF($Q131>$P$122,"Overload "&TRUNC($Q131-$O$122)&" Hours","In Range")) ->  | Q131: =P127+O123 -> 250 | S131: BIO1161 | T131: 44.4 | U131: CEN3379 | V131: 3
B132: Total (Primary + Added) work as % of Model Base | L132: =ROUND(($Q131/$O$122*100),1)&"% of Base" -> 18.8% of Base | Q132: =Q131/O122 -> 0.1879699248 | S132: BIO1161L | T132: 18 | U132: CEN3389 | V132: 3
S133: BIO1162 | T133: 15.33333333 | U133: CEN3389L | V133: 0
S134: BIO1162L | T134: 11.5 | U134: CEN3390 | V134: 3
S135: BIO1167 | T135: 51.27272727 | U135: CEN4455 | V135: 6
S136: BIO1167L | T136: 18.30769231 | U136: CEN4460 | V136: 3
S137: BIO1168 | T137: 72 | U137: CEN4465 | V137: 3
S138: BIO1168L | T138: 18 | U138: CEN4475 | V138: 3
E139: Compare to FA Collective Agreement | G139: Student Contact Hours | H139: Model Total Workld | S139: BIO1169 | T139: 35 | U139: CEN4480 | V139: 3
D140: Target Hours (by CA): | E140: =L9*K7 -> 540 | G140: =F91 -> 0 | H140: =O123 -> 250 | J140: 110% Target: | K140: =K141*1.1 -> 1463 | S140: BIO1169L | T140: 16.33333333 | U140: CEN4491 | V140: 6
D141: Actual Contact Hours: | E141: =F91*16 -> 0 | G141: % of FT | H141: % of FT | J141: Model Target: | K141: =O9 -> 1330 | S141: BIO1170 | T141: 72 | U141: CEN4496 | V141: 6
D142: % of contract: | E142: =E141/E140 -> 0 | G142: =G140/36 -> 0 | H142: =H140/1330 -> 0.1879699248 | J142: 90% Target: | K142: =K141*0.9 -> 1197 | S142: BIO1170L | T142: 18 | U142: CHM1155 | V142: 3
H143: =L9 -> 540 | S143: BIO1172 | T143: 54.66666667 | U143: CHM1155L | V143: 0
S144: BIO1172L | T144: 18.28571429 | U144: CHM2270 | V144: 3
S145: BIO1175 | T145: 48 | U145: CHM2270L | V145: 0
S146: BIO1175L | T146: 18 | U146: CHM4455 | V146: 3
S147: BIO1180 | T147: 35 | U147: CHM4455L | V147: 0
S148: BIO1180L | T148: 17.5 | U148: CIT1152 | V148: 3
S149: BIO1195 | T149: 33.33333333 | U149: CIT1154 | V149: 3
S150: BIO20 | T150: 32 | U150: CIT1156 | V150: 3
S151: BIO2263 | T151: 15 | U151: CIT1157 | V151: 3
S152: BIO2263L | T152: 15 | U152: CIT1158 | V152: 3
S153: BIO2264 | T153: 15 | U153: CIT1158L | V153: 0
S154: BIO2264L | T154: 15 | U154: CIT1163 | V154: 3
S155: BIO30 | T155: 32 | U155: CIT2255 | V155: 3
S156: BIO3350 | T156: 36 | U156: CIT2255L | V156: 0
S157: BIO3350L | T157: 18 | U157: CIT2259 | V157: 3
S158: BIO3352 | T158: 28 | U158: CIT2259L | V158: 0
S159: BIO3352L | T159: 14 | U159: CIT2260 | V159: 3
S160: BIO4461 | T160: 18 | U160: CIT2261 | V160: 3
S161: BIO4461L | T161: 18 | U161: CIT2261L | V161: 0
S162: BIO4462 | T162: 18 | U162: CIT2265 | V162: 3
S163: BIO4462L | T163: 18 | U163: CIT2266 | V163: 3
S164: BLK1151 | T164: 30 | U164: CIT2268 | V164: 3
S165: BLK2251 | T165: 20 | U165: CIT2270 | V165: 1.5
S166: BUS1124 | T166: 36 | U166: CIT2271 | V166: 3
S167: BUS1166 | T167: 36 | U167: CIT2275 | V167: 3
S168: BUS1170 | T168: 33.88235294 | U168: CIT2276 | V168: 3
S169: BUS1177 | T169: 32.28571429 | U169: CIV2237 | V169: 3
S170: BUS1185 | T170: 30 | U170: CIV2253 | V170: 3
S171: BUS2268 | T171: 30 | U171: CIV2254 | V171: 3
S172: BUS2275 | T172: 33 | U172: CIV2257 | V172: 3
S173: BUS2276 | T173: 36 | U173: CIV2258 | V173: 3
S174: BUS2277 | T174: 30 | U174: CIV2260 | V174: 3
S175: BUS2278 | T175: 42.5 | U175: CIV2260L | V175: 0
S176: BUS2281 | T176: 30 | U176: CIV2263 | V176: 3
S177: BUS2283 | T177: 35 | U177: CIV2266 | V177: 3
S178: BUS2283W | T178: 35 | U178: CIV2274 | V178: 3
S179: BUS2285 | T179: 25 | U179: CJP1157 | V179: 3
S180: BUS2285W | T180: 25 | U180: CJP1159 | V180: 3
S181: BUS2286 | T181: 30 | U181: CJP1160 | V181: 3
S182: BUS2287 | T182: 30 | U182: CJP1161 | V182: 3
S183: BUS2288 | T183: 33 | U183: CJP1163 | V183: 3
S184: BUS2288W | T184: 33 | U184: CJP1173 | V184: 3
S185: BUS2290 | T185: 30 | U185: CJP1178 | V185: 3
S186: BUS2292 | T186: 43.33333333 | U186: CJP1183 | V186: 3
S187: BUS2293 | T187: 35 | U187: CJP1185 | V187: 3
S188: BUS2293W | T188: 35 | U188: CJP1186 | V188: 3
S189: BUS2298 | T189: 33.33333333 | U189: CJP1188 | V189: 3
S190: BUS2298W | T190: 33.33333333 | U190: CJP2252 | V190: 3
S191: CAD1160 | T191: 25.71428571 | U191: CJP2255 | V191: 3
S192: CAP1158 | T192: 40 | U192: CJP2267 | V192: 3
S193: CEN2255 | T193: 36 | U193: CJP2269 | V193: 3
S194: CEN2259 | T194: 59 | U194: CJP2269L | V194: 0
S195: CEN2259L | T195: 19.66666667 | U195: CJP2278 | V195: 3
S196: CEN2267 | T196: 59 | U196: CJP2280 | V196: 3
S197: CEN2269 | T197: 59 | U197: CJP2281 | V197: 3
S198: CEN2269L | T198: 20 | U198: CJP2283 | V198: 3
S199: CEN3352 | T199: 30 | U199: CJP2284 | V199: 3
S200: CEN3352L | T200: 15 | U200: CJP2287 | V200: 3
... 789 more rows

Sheet Professional Development
A1: Explanation of Professional Development Area | I1: Click here to return to the Calculator
A2: The Calculator assumes that a faculty member will engage in these types of activities for ~50 h each year, and these don't need to be specifically accounted for.
A3: • develop and maintain technical, pedagogical and interpersonal skills
A4: • participate in activities that enhance an instructor’s overall effectiveness
A5: • participate in activities that keep instructors up-to-date with the latest techniques, information, and technical innovations in their discipline
A6: • participate in professional development activities offered by the Centre for Teaching Learning and Innovation
A7: • participate in activities to maintain professional designations
A8: • involvement with discipline related volunteer activities in the community or at the college

Sheet Inst-Disc Service
A1: Explanation of Institutional/Discipline Service Area | I1: Click here to return to the Calculator
A2: The Calculator assumes that a faculty member will engage in these types of activities for ~128 h each year, and these don't need to be specifically accounted for.
A3: • attend and participate in meetings related to their employment with the college (e.g. advisory committees, regularly scheduled program meetings, program timetable meetings, etc.)
A4: • assume a role on one or more college committees per year
A5: • orient and provide mentorship to probationary instructors and provide peer support where necessary for new and established colleagues
A6: • participate in professional or governmental organizations at the community, provincial, regional, national, or international level. This service may include serving on
B7: committees, being an officer in an organization, or developing a conference program. It may also include providing professional peer reviews, news releases,
B8: or other means for informing the media on discipline related topics; jurying creative work, serving on external review teams; and speaking to local, regional, national,
B9: and professional agencies
A10: • participate in activities to meet general or specific needs identified by the program or college

Sheet Applied Research
A1: Explanation of Applied Research area | I1: Click here to return to the Calculator
A2: These activities can be conducted as partial or complete substitution of Instructional Responsibilities. Engagement in applied research, and the related workload,
A3: will be mutually agreed upon by the faculty member and administration and is not to constitute additional work above and beyond other responsibilities.
A4: • applied research can be categorized as follows:
A5: o discipline based applied research conducted in conjunction with community/industry partners that is solution oriented with outcomes that can be applied to the real world;
A6: o applied research in the Scholarship of Teaching and Learning conducted in conjunction with internal and community partners that is solution oriented with outcomes
B7: that can be applied to the learning environment
A8: • work closely with their Dean and the Centre of Applied Research and Innovation and participate in a program of applied research related to their field of expertise and
B9: aligned with institutional applied research plans
A10: • identify and select the problems to be studied
A11: • contribute to the acquisition of funding
A12: • meet obligations of funding agencies and research partners
A13: • determine the research methodology, and the organization and dissemination of results
A14: • integrate applied research opportunities into instructional activities, including mentoring and supervising students
